bitfinex-derivatives/quotes_BTCF0:USTF0_20250918
["timestamp","ask_amount","ask_price","bid_price","bid_amount"]
[1758176747035,0.03556,117170.0,117150.0,0.07869514]
[1758176747736,0.01296,117160.0,117150.0,0.07869514]
[1758176747937,0.03556,117160.0,117150.0,0.002]
[1758176748538,0.03556,117160.0,117150.0,0.07869514]
[1758176749036,0.04556,117160.0,117150.0,0.07869514]
[1758176749740,0.05411389,117160.0,117150.0,0.07869514]
[1758176749939,0.05411389,117160.0,117150.0,0.07769514]
[1758176750139,0.05411389,117160.0,117150.0,0.07869514]
[1758176750638,0.05411389,117160.0,117150.0,0.07769514]
[1758176750834,0.05411389,117160.0,117150.0,0.07869514]
[1758176751035,0.05411389,117160.0,117150.0,0.07769514]
[1758176751237,0.04556,117160.0,117150.0,0.07869514]
[1758176752137,0.05423999,117160.0,117150.0,0.07869514]
[1758176752741,0.05423999,117160.0,117150.0,0.002]
[1758176753745,0.04556,117160.0,117150.0,0.002]
[1758176759444,0.04556,117160.0,117150.0,0.07869514]
[1758176760651,0.29556,117160.0,117150.0,0.07869514]
[1758176761052,0.29556,117160.0,117150.0,0.002]
[1758176770467,0.0357,117150.0,117140.0,0.0002]
[1758176770768,0.0457,117140.0,117130.0,0.07689514]
[1758176770968,0.0457,117140.0,117120.0,0.07689514]
[1758176771268,0.0357,117130.0,117120.0,0.07679514]
[1758176771468,0.0357,117130.0,117120.0,0.07669514]
[1758176773370,0.0357,117130.0,117120.0,0.08369514]
[1758176773870,0.0357,117130.0,117120.0,0.007]
[1758176774070,0.10268932,117130.0,117120.0,0.007]
[1758176774272,0.0357,117130.0,117120.0,0.007]
[1758176777467,0.0357,117130.0,117120.0,0.004]
[1758176777672,0.0367,117130.0,117120.0,0.004]
[1758176778876,0.1046861,117130.0,117120.0,0.004]
[1758176779175,0.0457,117120.0,117110.0,0.0002]
[1758176779375,0.0133,117110.0,117100.0,0.08559403]
[1758176779577,0.0133,117110.0,117100.0,0.08539403]
[1758176780970,0.0133,117110.0,117100.0,0.08639403]
[1758176781173,0.0357,117110.0,117100.0,0.08639403]
[1758176781371,0.0133,117110.0,117100.0,0.08639403]
[1758176781571,0.0357,117110.0,117100.0,0.00969889]
[1758176781771,0.0357,117110.0,117100.0,0.11706787]
[1758176782276,0.0357,117110.0,117100.0,0.08628856]
[1758176782469,0.0357,117110.0,117100.0,0.08828856]
[1758176786866,0.0357,117110.0,117100.0,0.07958967]
[1758176788479,0.0357,117110.0,117100.0,0.003]
[1758176789573,0.04403875,117110.0,117100.0,0.07958967]
[1758176790271,0.04403875,117110.0,117100.0,0.003]
[1758176791680,0.0357,117110.0,117100.0,0.003]
[1758176793780,0.2857,117110.0,117100.0,0.003]
[1758176793980,0.2857,117110.0,117100.0,0.07958967]
[1758176794279,0.2857,117110.0,117100.0,0.003]
[1758176799288,0.0357,117110.0,117100.0,0.003]
[1758176799793,0.01,117100.0,117090.0,0.36152237]
[1758176800087,0.04514,117100.0,117090.0,0.43791204]
[1758176800287,0.29514,117100.0,117090.0,0.43791204]
[1758176801187,0.29514,117100.0,117090.0,0.43991204]
[1758176801387,0.29514,117100.0,117090.0,0.36332237]
[1758176802386,0.29514,117100.0,117090.0,0.36532237]
[1758176807494,0.29514,117100.0,117090.0,0.33032237]
[1758176809601,0.04514,117100.0,117090.0,0.33032237]
[1758176813695,0.04514,117100.0,117090.0,0.35271237]
[1758176814295,0.04514,117100.0,117090.0,0.33032237]
[1758176816401,0.04514,117100.0,117090.0,0.35271237]
[1758176817098,0.03514,117100.0,117090.0,0.35271237]
[1758176817301,0.04514,117100.0,117090.0,0.35271237]
[1758176817498,0.03514,117100.0,117090.0,0.60271237]
[1758176817703,0.04514,117100.0,117090.0,0.60271237]
[1758176818201,0.03514,117100.0,117090.0,0.60271237]
[1758176818501,0.03514,117100.0,117090.0,0.67930204]
[1758176819404,0.04514,117100.0,117090.0,0.60271237]
[1758176819605,0.04514,117100.0,117090.0,0.67930204]
[1758176820207,0.04514,117100.0,117090.0,0.60271237]
[1758176820899,1.54514,117100.0,117090.0,0.60271237]
[1758176821602,0.4537,117110.0,117090.0,0.60271237]
[1758176821802,0.4537,117110.0,117090.0,0.61378237]
[1758176821803,0.01,117100.0,117090.0,0.61378237]
[1758176822006,0.01,117100.0,117090.0,0.61368237]
[1758176822205,0.01,117100.0,117090.0,0.36368237]
[1758176822408,0.0134,117110.0,117090.0,0.36368237]
[1758176822606,0.0133,117110.0,117090.0,0.36378237]
[1758176822908,0.0133,117110.0,117090.0,0.36178237]
[1758176823114,0.0133,117110.0,117090.0,0.36278237]
[1758176823297,1.5134,117120.0,117090.0,0.61278237]
[1758176823502,0.01,117110.0,117090.0,0.36288237]
[1758176823802,0.01,117110.0,117090.0,0.36078237]
[1758176824006,0.01,117110.0,117090.0,0.36178237]
[1758176824407,0.02372,117110.0,117090.0,0.36178237]
[1758176825412,0.02372,117110.0,117090.0,0.36078237]
[1758176826410,0.02372,117110.0,117090.0,0.36178237]
[1758176827912,0.02372,117110.0,117090.0,0.37014572]
[1758176828210,0.03558,117100.0,117090.0,0.35081237]
[1758176828416,0.03558,117100.0,117090.0,0.35071237]
[1758176829616,0.03558,117100.0,117090.0,0.35171237]
[1758176835918,0.28558,117100.0,117090.0,0.35171237]
[1758176836414,0.28558,117100.0,117090.0,0.32932237]
[1758176837714,0.04921,117090.0,117080.0,0.326]
[1758176838025,0.01,117060.0,117050.0,0.01324]
[1758176839318,0.01,117060.0,117050.0,0.01424]
[1758176839917,0.01,117060.0,117050.0,0.01524]
[1758176840819,0.01,117060.0,117050.0,0.002]
[1758176841121,0.07743935,117060.0,117050.0,0.002]
[1758176841420,0.01,117060.0,117050.0,0.002]
[1758176843221,0.26,117060.0,117050.0,0.002]
[1758176843720,0.26,117060.0,117050.0,0.001]
[1758176844015,0.262,117060.0,117050.0,0.001]
[1758176844614,0.262,117060.0,117030.0,0.03504]
[1758176844919,0.012,117060.0,117040.0,0.29100039]
[1758176845120,0.012,117060.0,117040.0,0.30424039]
[1758176845312,0.08061426,117060.0,117040.0,0.30424039]
[1758176845517,0.002,117060.0,117040.0,0.30424039]
[1758176845714,0.01,117050.0,117040.0,0.32594039]
[1758176847317,0.4503,117050.0,117040.0,0.30424039]
[1758176851827,0.01,117050.0,117040.0,0.30424039]
[1758176852927,0.01,117050.0,117040.0,0.32594039]
[1758176853928,0.01,117050.0,117040.0,0.30424039]
[1758176856419,0.01,117050.0,117030.0,0.01324]
[1758176856727,0.01,117050.0,117030.0,0.30434039]
[1758176859427,0.01,117050.0,117030.0,0.01334]
[1758176859921,0.01,117050.0,117030.0,0.03522]
[1758176861029,0.01,117050.0,117030.0,0.01334]
[1758176861232,0.01,117050.0,117030.0,0.30434039]
[1758176861632,0.03205345,117050.0,117030.0,0.30434039]
[1758176863032,0.03305345,117050.0,117030.0,0.30434039]
[1758176863834,0.03505345,117050.0,117030.0,0.32622039]
[1758176864234,0.03505345,117050.0,117040.0,0.01309]
[1758176864533,0.03505345,117050.0,117040.0,0.03497]
[1758176865626,0.06567005,117050.0,117030.0,0.01334]
[1758176865825,0.06567005,117050.0,117040.0,0.29100039]
[1758176866133,0.06367005,117050.0,117040.0,0.29100039]
[1758176866332,0.06567005,117050.0,117040.0,0.29100039]
[1758176866933,0.06567005,117050.0,117040.0,0.30409039]
[1758176867639,0.06367005,117050.0,117040.0,0.30409039]
[1758176867936,0.06967005,117050.0,117040.0,0.30409039]
[1758176868739,0.07167005,117050.0,117040.0,0.30409039]
[1758176869542,0.07067005,117050.0,117040.0,0.30409039]
[1758176870534,0.06867005,117050.0,117040.0,0.30409039]
[1758176870741,0.07167005,117050.0,117040.0,0.32597039]
[1758176871341,0.06867005,117050.0,117040.0,0.32597039]
[1758176871640,0.06567005,117050.0,117040.0,0.32597039]
[1758176871940,0.07067005,117050.0,117040.0,0.32597039]
[1758176872943,0.04005345,117050.0,117040.0,0.32597039]
[1758176873946,0.18185345,117050.0,117040.0,0.32597039]
[1758176874140,0.04005345,117050.0,117040.0,0.32597039]
[1758176874340,0.07067005,117050.0,117040.0,0.32597039]
[1758176875444,0.04005345,117050.0,117040.0,0.32597039]
[1758176876238,0.07067005,117050.0,117040.0,0.32597039]
[1758176876443,0.04005345,117050.0,117040.0,0.32597039]
[1758176877042,0.04005345,117050.0,117040.0,0.57597039]
[1758176877242,0.03005345,117050.0,117040.0,0.57597039]
[1758176877443,0.04005345,117050.0,117040.0,0.57597039]
[1758176877940,0.04573514,117080.0,117070.0,0.01309]
[1758176878245,0.04573514,117080.0,117070.0,0.07885075]
[1758176878442,0.21821282,117110.0,117070.0,0.07885075]
[1758176878647,0.1418,117110.0,117080.0,0.0001]
[1758176879138,0.0049,117080.0,117070.0,0.03497]
[1758176879345,0.0049,117080.0,117070.0,0.07895075]
[1758176880141,0.0726351,117080.0,117070.0,0.07895075]
[1758176880345,0.0049,117080.0,117070.0,0.07895075]
[1758176880648,0.0109,117080.0,117070.0,0.07895075]
[1758176880849,0.006,117080.0,117070.0,0.07895075]
[1758176881848,0.009,117080.0,117070.0,0.07895075]
[1758176884050,0.009,117080.0,117070.0,0.32895075]
[1758176884449,0.07709712,117080.0,117070.0,0.32895075]
[1758176884749,0.009,117080.0,117070.0,0.32895075]
[1758176888250,0.07756155,117080.0,117070.0,0.32895075]
[1758176888451,0.009,117080.0,117070.0,0.32895075]
[1758176893053,0.07791672,117080.0,117070.0,0.32895075]
[1758176893254,0.009,117080.0,117070.0,0.32895075]
[1758176895359,0.009,117080.0,117070.0,0.07895075]
[1758176895553,0.009,117080.0,117070.0,0.09177689]
[1758176897159,0.259,117080.0,117070.0,0.04789614]
[1758176897861,0.32883197,117080.0,117070.0,0.04789614]
[1758176898061,0.32883197,117080.0,117070.0,0.02601614]
[1758176899359,0.32883197,117080.0,117070.0,0.04780614]
[1758176901970,0.32883197,117080.0,117070.0,0.02601614]
[1758176902463,0.34848844,117080.0,117070.0,0.02601614]
[1758176902966,0.34848844,117080.0,117070.0,0.01292614]
[1758176903166,0.49028844,117080.0,117070.0,0.01292614]
[1758176906670,0.49028844,117080.0,117070.0,0.01295203]
[1758176909166,0.49028844,117080.0,117070.0,0.0001]
[1758176910268,0.09848844,117080.0,117070.0,0.08003075]
[1758176910469,0.09848844,117080.0,117070.0,0.33003075]
[1758176913171,0.09848844,117080.0,117070.0,0.05724075]
[1758176913769,0.09848844,117080.0,117070.0,0.08003075]
[1758176917369,0.09848844,117080.0,117070.0,0.05724075]
[1758176917576,0.09848844,117080.0,117070.0,0.04398075]
[1758176918176,0.09848844,117080.0,117070.0,0.05724075]
[1758176918366,0.24028844,117080.0,117070.0,0.05724075]
[1758176919270,0.24028844,117080.0,117070.0,0.01336]
[1758176927180,0.24028844,117080.0,117070.0,0.05724075]
[1758176927374,0.24028844,117080.0,117070.0,0.0001]
[1758176927679,0.49028844,117080.0,117050.0,0.0053609]
[1758176927879,0.24028844,117080.0,117060.0,0.04388075]
[1758176929176,0.23728844,117080.0,117060.0,0.04388075]
[1758176929481,0.24138844,117080.0,117060.0,0.04388075]
[1758176930978,0.23538844,117080.0,117060.0,0.04388075]
[1758176931282,0.27193862,117080.0,117060.0,0.04388075]
[1758176931482,0.24138844,117080.0,117060.0,0.04388075]
[1758176932484,0.27193862,117080.0,117060.0,0.04388075]
[1758176933383,0.17235018,117070.0,117060.0,0.04388075]
[1758176933584,0.23773618,117070.0,117060.0,0.04388075]
[1758176934176,0.19200665,117070.0,117060.0,0.04388075]
[1758176934382,0.23773618,117070.0,117060.0,0.04388075]
[1758176934582,0.24073618,117070.0,117060.0,0.04388075]
[1758176935287,0.24573618,117070.0,117060.0,0.04388075]
[1758176935486,0.20000665,117070.0,117060.0,0.04388075]
[1758176937690,0.32728985,117070.0,117060.0,0.04388075]
[1758176939192,0.32728985,117070.0,117060.0,0.05714075]
[1758176941788,0.32728985,117070.0,117060.0,0.01326]
[1758176942090,0.32728985,117070.0,117050.0,0.0284109]
[1758176942291,0.32738985,117070.0,117050.0,0.0284109]
[1758176944294,0.29683967,117070.0,117050.0,0.0284109]
[1758176944493,1.5,117060.0,117050.0,0.0284109]
[1758176944792,1.51965647,117060.0,117050.0,0.0284109]
[1758176945598,1.52265647,117060.0,117050.0,0.0284109]
[1758176945900,1.52465647,117060.0,117050.0,0.0284109]
[1758176953398,1.52465647,117060.0,117050.0,0.0053609]
[1758176953599,1.66645647,117060.0,117050.0,0.0053609]
[1758176954197,1.66832647,117060.0,117040.0,0.01296005]
[1758176954398,1.66842647,117060.0,117030.0,0.01326]
[1758176954604,1.66842647,117060.0,117030.0,0.03631]
[1758176954605,0.02279,117040.0,117030.0,0.03631]
[1758176956400,0.02379,117040.0,117030.0,0.03631]
[1758176957099,0.02479,117040.0,117030.0,0.03631]
[1758176957299,0.02579,117040.0,117030.0,0.03631]
[1758176957500,0.02779,117040.0,117030.0,0.03631]
[1758176957693,0.27132336,117040.0,117020.0,0.01084277]
[1758176957895,0.03363,117030.0,117020.0,0.02305]
[1758176959805,0.03463,117030.0,117020.0,0.02305]
[1758176960204,0.03663,117030.0,117020.0,0.02305]
[1758176961909,0.02579,117030.0,117020.0,0.03698]
[1758176963610,0.16759,117030.0,117020.0,0.03698]
[1758176964309,0.1876488,117030.0,117020.0,0.03698]
[1758176968715,0.1984888,117030.0,117020.0,0.02305]
[1758176969420,0.1876488,117030.0,117020.0,0.03698]
[1758176972423,0.0458488,117030.0,117020.0,0.03698]
[1758176973525,0.0458488,117030.0,117020.0,0.28698]
[1758176977935,0.0230588,117030.0,117020.0,0.28698]
[1758176979335,0.0230588,117030.0,117020.0,0.03698]
[1758176980633,0.0230588,117030.0,117020.0,0.28698]
[1758176981126,0.003,117030.0,117020.0,0.28698]
[1758176982235,0.02304786,117030.0,117020.0,0.28698]
[1758176983730,0.003,117030.0,117020.0,0.28698]
[1758176984130,0.07609952,117040.0,117030.0,0.03432]
[1758176984331,0.02005668,117040.0,117030.0,0.03432]
[1758176985133,0.0880609,117040.0,117030.0,0.03432]
[1758176985434,0.02505668,117040.0,117030.0,0.03432]
[1758176987341,0.02205668,117040.0,117030.0,0.03432]
[1758176987541,0.02105668,117040.0,117030.0,0.03432]
[1758176987742,0.02205668,117040.0,117030.0,0.03432]
[1758176989443,0.09170741,117040.0,117030.0,0.03432]
[1758176989943,0.07165073,117040.0,117030.0,0.03432]
[1758176992445,1.57165073,117040.0,117030.0,0.03432]
[1758176997845,0.07165073,117040.0,117030.0,0.03432]
[1758176999447,0.07165073,117040.0,117030.0,0.28432]
[1758176999648,0.03665073,117040.0,117030.0,0.28432]
[1758176999850,0.4403,117050.0,117040.0,0.03641]
[1758177001352,0.4413,117050.0,117040.0,0.03641]
[1758177001851,0.46416,117050.0,117040.0,0.03641]
[1758177002049,0.4413,117050.0,117040.0,0.03641]
[1758177002351,0.4423,117050.0,117040.0,0.03641]
[1758177004254,0.46516,117050.0,117040.0,0.03641]
[1758177004647,0.28822,117050.0,117040.0,0.02295]
[1758177006052,0.28822,117050.0,117030.0,0.02305]
[1758177006053,0.03622,117040.0,117030.0,0.02305]
[1758177006254,0.10611667,117040.0,117030.0,0.02295]
[1758177006454,0.28622,117040.0,117030.0,0.02295]
[1758177008255,0.28822,117040.0,117030.0,0.02295]
[1758177008748,0.29022,117040.0,117030.0,0.02295]
[1758177009157,0.29022,117040.0,117020.0,0.0001]
[1758177009453,0.03622,117030.0,117020.0,0.02305]
[1758177009656,0.03622,117030.0,117020.0,0.02295]
[1758177010955,0.03722,117030.0,117020.0,0.02295]
[1758177011556,0.03822,117030.0,117020.0,0.02295]
[1758177018653,0.01336,117020.0,117010.0,0.02305]
[1758177018852,0.03622,117020.0,117010.0,0.02295]
[1758177021759,0.03622,117020.0,117010.0,0.03641]
[1758177022258,0.46316,117020.0,117010.0,0.03641]
[1758177023859,0.47652,117020.0,117010.0,0.03641]
[1758177024560,0.47652,117020.0,117010.0,0.02295]
[1758177028166,0.03622,117020.0,117010.0,0.02295]
[1758177028667,0.17802,117020.0,117010.0,0.02295]
[1758177031767,0.19814693,117020.0,117010.0,0.02295]
[1758177048285,0.19814693,117020.0,117010.0,0.03676]
[1758177048488,0.18478693,117020.0,117010.0,0.03676]
[1758177051788,0.04298693,117020.0,117010.0,0.03676]
[1758177051990,0.04298693,117020.0,117010.0,0.28676]
[1758177056193,0.02286,117020.0,117010.0,0.28676]
[1758177056390,0.04304334,117020.0,117010.0,0.28676]
[1758177059096,0.04304334,117020.0,117010.0,0.03676]
[1758177059397,0.05575334,117020.0,117010.0,0.03676]
[1758177059696,0.05575334,117020.0,117010.0,0.02295]
[1758177059886,1.06081094,117020.0,117010.0,0.02295]
[1758177060901,1.06081094,117020.0,117010.0,0.03591]
[1758177062993,1.06081094,117020.0,117010.0,0.02295]
[1758177064104,1.31081094,117020.0,117010.0,0.02295]
[1758177067903,1.53415281,117020.0,117010.0,0.02295]
[1758177072104,1.53534,117010.0,117000.0,0.02198]
[1758177072304,2.22553554,117010.0,117000.0,0.02188]
[1758177072705,2.64566561,117010.0,117000.0,0.02188]
[1758177073105,2.64566561,117010.0,117000.0,0.03484]
[1758177073410,2.64566561,117010.0,117000.0,0.03584]
[1758177073611,2.66583277,117010.0,117000.0,0.03584]
[1758177073909,2.64566561,117010.0,117000.0,0.03584]
[1758177074612,2.64566561,117010.0,117000.0,0.03684]
[1758177075409,2.42232374,117010.0,117000.0,0.03684]
[1758177076307,2.64566561,117010.0,117000.0,0.03684]
[1758177078415,2.66570291,117010.0,117000.0,0.03684]
[1758177079413,2.66570291,117010.0,117000.0,0.02388]
[1758177080912,2.64566561,117010.0,117000.0,0.02388]
[1758177085322,2.64566561,117010.0,117000.0,0.03684]
[1758177086122,2.42232374,117010.0,117000.0,0.03684]
[1758177087321,2.64566561,117010.0,117000.0,0.03684]
[1758177088925,2.66570526,117010.0,117000.0,0.03684]
[1758177089226,2.64566561,117010.0,117000.0,0.03684]
[1758177089419,2.66570696,117010.0,117000.0,0.02388]
[1758177091328,2.91570696,117010.0,117000.0,0.002]
[1758177092728,2.91570696,117010.0,117000.0,0.02395]
[1758177093328,2.91570696,117010.0,117000.0,0.03731]
[1758177093531,2.44236509,117010.0,117000.0,0.03731]
[1758177093725,2.42952509,117010.0,117000.0,0.03731]
[1758177094123,2.44329509,117010.0,117000.0,0.03731]
[1758177094323,2.66663696,117010.0,117000.0,0.03731]
[1758177095926,2.66663696,117010.0,117000.0,0.02395]
[1758177096130,2.66663696,117010.0,117000.0,0.002]
[1758177096530,2.22633696,117010.0,117000.0,0.002]
[1758177098034,2.22633696,117010.0,117000.0,0.02395]
[1758177099738,2.22633696,117010.0,117000.0,0.002]
[1758177104045,2.22633696,117010.0,117000.0,0.02395]
[1758177104540,2.22633696,117010.0,117000.0,0.002]
[1758177104940,2.47633696,117010.0,117000.0,0.002]
[1758177110348,0.72633696,117010.0,117000.0,0.02395]
[1758177110553,0.0225,117010.0,117000.0,0.28731]
[1758177110751,0.44668374,117010.0,117000.0,0.28731]
[1758177110958,0.22334187,117010.0,117000.0,0.28731]
[1758177111148,0.32561108,117040.0,117030.0,0.02195]
[1758177111354,0.34558504,117040.0,117030.0,0.02195]
[1758177112254,1.23256878,117040.0,117030.0,0.02195]
[1758177112658,1.23456878,117040.0,117030.0,0.02195]
[1758177113248,1.23457541,117040.0,117030.0,0.28531]
[1758177113454,1.22121541,117040.0,117030.0,0.28531]
[1758177113954,1.22321541,117040.0,117030.0,0.28531]
[1758177114356,1.23698541,117040.0,117030.0,0.28531]
[1758177115359,1.23698541,117040.0,117030.0,0.02195]
[1758177117957,1.23698541,117040.0,117020.0,0.0001]
[1758177118156,0.70527561,117030.0,117020.0,0.02205]
[1758177118357,0.7252562,117030.0,117020.0,0.02195]
[1758177119769,0.7262562,117030.0,117020.0,0.02195]
[1758177121971,0.7272562,117030.0,117020.0,0.02195]
[1758177127468,0.05723059,117030.0,117020.0,0.02195]
[1758177127670,0.7272562,117030.0,117020.0,0.02195]
[1758177128871,0.70727561,117030.0,117020.0,0.02195]
[1758177129875,1.04210156,117030.0,117020.0,0.02195]
[1758177131676,0.03527,117020.0,117010.0,0.02176]
[1758177131976,1.04012156,117020.0,117010.0,0.02166]
[1758177132175,1.04012156,117020.0,117010.0,0.03523]
[1758177133078,1.04012156,117020.0,117010.0,0.02166]
[1758177133279,1.04012156,117020.0,117010.0,0.03523]
[1758177134179,1.02710156,117020.0,117010.0,0.03523]
[1758177134374,1.04012156,117020.0,117010.0,0.03523]
[1758177134775,1.02710156,117020.0,117010.0,0.03523]
[1758177135579,1.04012156,117020.0,117010.0,0.02166]
[1758177142088,1.04012156,117020.0,117010.0,0.03523]
[1758177144588,1.02710156,117020.0,117010.0,0.03523]
[1758177145184,0.02225,117020.0,117010.0,0.03523]
[1758177145385,1.02710156,117020.0,117010.0,0.03523]
[1758177148193,0.08967921,117040.0,117030.0,0.03523]
[1758177148495,1.11452834,117040.0,117030.0,0.03523]
[1758177149592,1.11752834,117040.0,117030.0,0.05239754]
[1758177150588,0.76258025,117040.0,117030.0,0.05239754]
[1758177150793,0.76032204,117040.0,117030.0,0.05239754]
[1758177151196,0.78188204,117040.0,117030.0,0.05239754]
[1758177151995,0.78188204,117040.0,117030.0,0.03523]
[1758177152193,1.11483256,117040.0,117030.0,0.03523]
[1758177152493,0.78088204,117040.0,117030.0,0.03523]
[1758177152993,0.76089025,117040.0,117030.0,0.03523]
[1758177153200,1.09484077,117040.0,117030.0,0.03523]
[1758177154191,0.75989025,117040.0,117030.0,0.03523]
[1758177154393,0.73833025,117040.0,117030.0,0.03523]
[1758177154594,0.73833025,117040.0,117030.0,0.63722031]
[1758177154795,0.73833025,117040.0,117030.0,0.30226979]
[1758177154998,0.73833025,117040.0,117030.0,0.63722031]
[1758177155292,0.67090104,117040.0,117030.0,0.63722031]
[1758177155494,0.67090104,117040.0,117030.0,0.30226979]
[1758177156298,0.69246104,117040.0,117030.0,0.30226979]
[1758177156485,0.69146104,117040.0,117030.0,0.30226979]
[1758177157900,0.02156,117040.0,117030.0,0.30226979]
[1758177158101,0.69146104,117040.0,117030.0,0.30226979]
[1758177159404,0.69146104,117040.0,117030.0,0.05226979]
[1758177160093,0.66990104,117040.0,117030.0,0.05226979]
[1758177160395,1.52156,117050.0,117040.0,0.01395]
[1758177160600,1.54152485,117050.0,117040.0,0.03569]
[1758177160804,2.19146104,117050.0,117040.0,0.03569]
[1758177161696,1.52156,117050.0,117040.0,0.03569]
[1758177161898,2.19146104,117050.0,117040.0,0.03569]
[1758177162104,2.19246104,117050.0,117040.0,0.03569]
[1758177164502,2.21242278,117050.0,117040.0,0.03569]
[1758177176226,1.54252174,117050.0,117040.0,0.03569]
[1758177176426,2.21242278,117050.0,117040.0,0.03569]
[1758177176926,1.54252174,117050.0,117040.0,0.03569]
[1758177177125,2.21242278,117050.0,117040.0,0.03569]
[1758177180726,0.69086278,117050.0,117040.0,0.03569]
[1758177181030,0.71349278,117050.0,117040.0,0.03569]
[1758177182426,0.37854226,117050.0,117040.0,0.03569]
[1758177183028,0.71349278,117050.0,117040.0,0.03569]
[1758177183332,0.69086278,117050.0,117040.0,0.03569]
[1758177183526,0.71349278,117050.0,117040.0,0.03569]
[1758177187837,0.04359174,117050.0,117040.0,0.03569]
[1758177188033,0.71349278,117050.0,117040.0,0.03569]
[1758177191836,0.48989336,117050.0,117040.0,0.03569]
[1758177192432,0.26674255,117050.0,117040.0,0.03569]
[1758177192632,0.02096174,117050.0,117040.0,0.50884081]
[1758177193028,0.24411255,117050.0,117040.0,0.28569]
[1758177193239,0.22415081,117050.0,117040.0,0.28569]
[1758177194134,0.22415081,117050.0,117040.0,0.36217175]
[1758177194331,0.001,117050.0,117040.0,0.36217175]
[1758177194535,0.22415081,117050.0,117040.0,0.36217175]
[1758177195140,0.22415081,117050.0,117040.0,0.58532256]
[1758177195336,0.001,117050.0,117040.0,0.58532256]
[1758177195533,0.22415081,117050.0,117040.0,0.58532256]
[1758177195729,0.22415081,117050.0,117040.0,0.36217175]
[1758177195938,0.22315081,117050.0,117040.0,0.29876108]
[1758177198342,0.22315081,117050.0,117040.0,0.36009784]
[1758177198842,0.0001,117060.0,117050.0,0.0136]
[1758177199149,1.53121535,117070.0,117060.0,0.0354]
[1758177199344,1.53111535,117070.0,117060.0,0.04847108]
[1758177199842,1.54377535,117070.0,117060.0,0.04847108]
[1758177200344,1.99007697,117070.0,117060.0,0.04847108]
[1758177200846,1.99207697,117070.0,117060.0,0.04847108]
[1758177201445,1.99207697,117070.0,117060.0,0.03487108]
[1758177202146,1.99307697,117070.0,117060.0,0.03487108]
[1758177203545,1.99307697,117070.0,117060.0,0.04847108]
[1758177203745,1.98041697,117070.0,117060.0,0.04847108]
[1758177203942,1.75726616,117070.0,117060.0,0.04847108]
[1758177204148,1.99307697,117070.0,117060.0,0.04847108]
[1758177204338,1.98041697,117070.0,117060.0,0.04847108]
[1758177211945,2.21634778,117070.0,117060.0,0.01307108]
[1758177212144,2.46634778,117070.0,117060.0,0.01307108]
[1758177212750,1.79689535,117070.0,117060.0,0.01307108]
[1758177212946,2.46634778,117070.0,117060.0,0.01307108]
[1758177213247,2.46634778,117070.0,117050.0,0.0001]
[1758177213452,0.70387243,117060.0,117050.0,0.02148]
[1758177213645,0.48072162,117060.0,117050.0,0.02138]
[1758177219054,0.02164,117060.0,117050.0,0.03494]
[1758177219358,0.24479081,117060.0,117050.0,0.03494]
[1758177219658,0.46794162,117060.0,117050.0,0.03494]
[1758177219955,0.02164,117060.0,117050.0,0.03494]
[1758177220149,0.46794162,117060.0,117050.0,0.03494]
[1758177222163,0.02164,117060.0,117050.0,0.03494]
[1758177222463,0.46794162,117060.0,117050.0,0.03494]
[1758177222662,0.25337616,117070.0,117060.0,0.03494]
[1758177222855,0.25327616,117070.0,117060.0,0.03494]
[1758177223364,0.47642697,117070.0,117060.0,0.03494]
[1758177223664,0.48920697,117070.0,117060.0,0.02138]
[1758177224963,0.25427616,117070.0,117060.0,0.03494]
[1758177225761,0.25327616,117070.0,117060.0,0.03494]
[1758177226162,0.25327616,117070.0,117060.0,0.03594]
[1758177227264,0.24479081,117070.0,117060.0,0.03594]
[1758177227466,0.2534541,117070.0,117060.0,0.03594]
[1758177227663,0.24479081,117070.0,117060.0,0.03594]
[1758177228163,0.02164,117070.0,117060.0,0.03594]
[1758177228464,0.24479081,117070.0,117060.0,0.03594]
[1758177229265,0.02164,117070.0,117060.0,0.03594]
[1758177229465,0.24479081,117070.0,117060.0,0.03594]
[1758177230162,0.25317345,117070.0,117060.0,0.03594]
[1758177230666,0.24479081,117070.0,117060.0,0.03594]
[1758177231767,0.02164,117070.0,117060.0,0.03594]
[1758177231969,0.24479081,117070.0,117060.0,0.03594]
[1758177234867,1.74479081,117070.0,117060.0,0.03594]
[1758177236768,1.74479081,117070.0,117060.0,0.09727676]
[1758177237873,1.74479081,117070.0,117060.0,0.03594]
[1758177239274,1.74479081,117070.0,117060.0,0.09727676]
[1758177239478,1.98072162,117070.0,117060.0,0.09727676]
[1758177240277,1.98072162,117070.0,117060.0,0.08371676]
[1758177240479,2.23072162,117070.0,117060.0,0.02238]
[1758177248289,2.23072162,117070.0,117060.0,0.08371676]
[1758177253592,2.23072162,117070.0,117060.0,0.06233676]
[1758177253791,2.45376078,117070.0,117060.0,0.08456676]
[1758177255091,2.45376078,117070.0,117060.0,0.02323]
[1758177255391,2.45376078,117070.0,117060.0,0.08456676]
[1758177255692,2.45376078,117070.0,117060.0,0.02323]
[1758177255887,2.20376078,117070.0,117060.0,0.001]
[1758177260598,1.53442,117070.0,117060.0,0.06233676]
[1758177260899,2.20376078,117070.0,117060.0,0.06233676]
[1758177262103,2.20376078,117070.0,117060.0,0.08456676]
[1758177262600,2.20376078,117070.0,117060.0,0.02323]
[1758177263303,2.20376078,117070.0,117060.0,0.001]
[1758177264505,2.20376078,117070.0,117060.0,0.06233676]
[1758177266705,2.20376078,117070.0,117060.0,0.001]
[1758177269008,1.53442,117070.0,117060.0,0.001]
[1758177269208,2.20376078,117070.0,117060.0,0.001]
[1758177269810,2.20376078,117070.0,117060.0,0.02323]
[1758177274506,1.53442,117070.0,117060.0,0.02323]
[1758177274805,2.20376078,117070.0,117060.0,0.001]
[1758177275001,2.20376078,117070.0,117060.0,0.02265]
[1758177275206,2.20376078,117070.0,117060.0,0.001]
[1758177276210,2.20376078,117070.0,117060.0,0.02265]
[1758177277207,1.53442,117070.0,117060.0,0.02265]
[1758177277410,2.20376078,117070.0,117060.0,0.02265]
[1758177278214,2.22377325,117070.0,117060.0,0.02265]
[1758177279112,1.88910286,117070.0,117060.0,0.02265]
[1758177279314,0.86656571,117080.0,117060.0,1.11859622]
[1758177279614,0.87680571,117080.0,117070.0,0.43056715]